fUSD/lending_fUSD_20240220
["ID","MTS","AMOUNT","RATE_DAILY","PERIOD"]
[314588295,1708435845820,-253.0,0.00048,2]
[314588297,1708435845829,-42885.987,0.00048,120]
[314588299,1708435845839,-42885.987,0.00048,120]
[314588301,1708435845849,-33992.89669311,0.00048,120]
[314588310,1708435845934,-382.25327855,0.00035616,2]
[314588314,1708435845960,-195.62260501,0.00035616,2]
[314588316,1708435845969,-511.81295225,0.00035616,2]
[314588318,1708435845978,-500.0,0.00035616,2]
[314588319,1708435845987,-557.57000563,0.00035616,2]
[314588320,1708435845996,-614.41384191,0.00035616,2]
[314588321,1708435846005,-521.54320781,0.00035616,2]
[314588322,1708435846014,-1231.0,0.00039028,2]
[314588323,1708435846023,-11567.05050824,0.00040128,2]
[314588324,1708435846032,-296.783,0.00042028,2]
[314588325,1708435846042,-216.0,0.00045028,2]
[314588326,1708435846051,-8893.09030689,0.00048,120]
[314588327,1708435846060,-4993.94314403,0.00048,120]
[314588328,1708435846074,-483.66227632,0.00048,120]
[314588329,1708435846087,-37408.38157965,0.00048,120]
[314588330,1708435846096,-42885.987,0.00048,120]
[314588331,1708435846105,-150.0,0.00048,45]
[314588332,1708435846114,-1200.41155946,0.00048,30]
[314588333,1708435846123,-200.0,0.00048,2]
[314588334,1708435846132,-5025.53,0.00048,30]
[314588335,1708435846142,-194.0,0.00048,90]
[314588336,1708435846152,-153.80130941,0.00048,24]
[314588337,1708435846161,-2770.68,0.00048002,30]
[314588338,1708435846170,-2770.68,0.00048002,30]
[314588339,1708435846179,-150.0,0.00048004,7]
[314588340,1708435846188,-311.05124246,0.00048014,7]
[314588341,1708435846198,-150.0,0.00048025,7]
[314588342,1708435846207,-150.0,0.00048028,7]
[314588343,1708435846216,-1500.0,0.00048032,7]
[314588344,1708435846225,-1500.0,0.00048042,7]
[314588345,1708435846234,-150.0,0.00048045,7]
[314588346,1708435846244,-150.0,0.00048058,7]
[314588347,1708435846253,-150.0,0.00048059,7]
[314588348,1708435846262,-150.0,0.00048061,7]
[314588349,1708435846272,-181.39921102,0.0004807,30]
[314588350,1708435846281,-150.0,0.00048075,7]
[314588351,1708435846291,-177.32141655,0.00048075,30]
[314588352,1708435846299,-150.04564581,0.00048086,30]
[314588353,1708435846308,-150.0,0.00048088,7]
[314588354,1708435846318,-150.0,0.00048089,7]
[314588355,1708435846326,-150.0,0.00048094,7]
[314588356,1708435846336,-150.0,0.00048098,7]
[314588357,1708435846345,-150.0,0.00048098,7]
[314588358,1708435846354,-151.31004068,0.00048101,30]
[314588359,1708435846363,-150.0,0.00048102,7]
[314588360,1708435846372,-150.0,0.00048111,7]
[314588361,1708435846383,-150.0,0.00048121,7]
[314588362,1708435846392,-155.18298927,0.00048128,30]
[314588363,1708435846401,-150.0,0.00048131,7]
[314588364,1708435846410,-150.0,0.00048136,7]
[314588365,1708435846418,-150.0,0.00048137,7]
[314588366,1708435846427,-260.91113946,0.00048137,7]
[314588367,1708435846436,-150.0,0.00048138,7]
[314588368,1708435846446,-150.0,0.00048139,7]
[314588369,1708435846455,-150.0,0.0004814,7]
[314588370,1708435846464,-150.0,0.00048145,7]
[314588371,1708435846474,-150.0,0.00048146,7]
[314588372,1708435846483,-150.0,0.00048163,7]
[314588373,1708435846492,-150.0,0.00048168,7]
[314588374,1708435846501,-150.0,0.00048171,7]
[314588375,1708435846510,-150.0,0.00048171,7]
[314588376,1708435846519,-151.31004068,0.00048179,30]
[314588377,1708435846528,-1500.0,0.00048181,7]
[314588378,1708435846537,-150.0,0.00048182,7]
[314588379,1708435846547,-37.99682555,0.00048199,2]
[314588380,1708435846586,-124.3915135,0.00048199,2]
[314588381,1708435846595,-4979.89112243,0.00048199,2]
[314588382,1708435846604,-300.0,0.000482,9]
[314588383,1708435846613,-150.0,0.000482,7]
[314588384,1708435846622,-150.0,0.000482,7]
[314588385,1708435846632,-150.0,0.00048201,7]
[314588386,1708435846642,-150.0,0.00048207,7]
[314588387,1708435846651,-150.0,0.0004821,7]
[314588388,1708435846660,-697.91088389,0.00048211,30]
[314588389,1708435846670,-155.58772598,0.00048212,30]
[314588390,1708435846679,-150.0,0.00048219,7]
[314588391,1708435846689,-150.0,0.00048231,7]
[314588392,1708435846698,-177.32141655,0.00048237,30]
[314588393,1708435846707,-177.32141655,0.00048241,30]
[314588394,1708435846716,-6723.98752328,0.0004825,29]
[314588395,1708435846725,-150.0,0.00048255,7]
[314588396,1708435846734,-150.0,0.00048257,7]
[314588397,1708435846743,-150.0,0.00048261,7]
[314588398,1708435846752,-150.0,0.00048261,7]
[314588399,1708435846761,-509.81797846,0.00048261,9]
[314588400,1708435846770,-300.0,0.00048263,7]
[314588401,1708435846779,-150.0,0.00048264,7]
[314588402,1708435846789,-150.0,0.00048266,7]
[314588403,1708435846798,-150.0,0.00048267,7]
[314588404,1708435846808,-150.0,0.00048269,7]
[314588405,1708435846817,-150.0,0.0004827,7]
[314588406,1708435846826,-2770.68,0.00048275,30]
[314588407,1708435846835,-2770.68,0.00048275,30]
[314588408,1708435846845,-4084.42488056,0.0004828,11]
[314588409,1708435846857,-3168.77000879,0.0004828,11]
[314588410,1708435846871,-80591.02030225,0.0004828,11]
[314588411,1708435846881,-150.0,0.00048284,7]
[314588412,1708435846890,-1500.0,0.00048286,7]
[314588413,1708435846899,-279.51214392,0.0004829,2]
[314588414,1708435846907,-151.93088735,0.00048292,30]
[314588415,1708435846916,-200.0,0.000483,25]
[314588416,1708435846925,-5598.1148,0.000483,74]
[314588417,1708435846935,-232.65,0.000483,25]
[314588418,1708435846945,-2343.9160353,0.000483,2]
[314588419,1708435846954,-1077.3484226,0.000483,2]
[314588420,1708435846963,-11492.99794777,0.000483,2]
[314588421,1708435846973,-15178.160174,0.000483,92]
[314588422,1708435846981,-150.0,0.00048301,7]
[314588423,1708435846991,-150.0,0.00048311,7]
[314588424,1708435847001,-150.0,0.00048319,7]
[314588425,1708435847012,-150.0,0.00048328,7]
[314588426,1708435847022,-150.0,0.00048331,7]
[314588427,1708435847031,-300.0,0.00048334,7]
[314588428,1708435847040,-150.0,0.00048338,7]
[314588429,1708435847049,-150.0,0.0004834,7]
[314588430,1708435847058,-150.0,0.00048342,7]
[314588431,1708435847067,-150.0,0.00048342,7]
[314588432,1708435847076,-150.0,0.00048352,7]
[314588433,1708435847085,-1500.0,0.00048372,7]
[314588434,1708435847095,-150.0,0.00048374,7]
[314588435,1708435847105,-177.32141655,0.00048388,30]
[314588436,1708435847115,-150.0,0.00048389,7]
[314588437,1708435847124,-342.72393917,0.00048389,2]
[314588438,1708435847133,-87844.2151916,0.0004839,11]
[314588439,1708435847142,-5742.10554812,0.0004839,2]
[314588440,1708435847152,-202.78037626,0.00048396,30]
[314588441,1708435847162,-57673.2657337,0.000484,120]
[314588442,1708435847172,-240.22183727,0.000484,2]
[314588443,1708435847181,-500.0,0.000484,120]
[314588444,1708435847193,-500.0,0.000484,120]
[314588445,1708435847202,-500.0,0.000484,120]
[314588446,1708435847211,-500.0,0.000484,120]
[314588447,1708435847220,-500.0,0.000484,120]
[314588448,1708435847229,-500.0,0.000484,120]
[314588449,1708435847239,-489.77826407,0.000484,120]
[314588450,1708435847248,-1157.4035228,0.00048401,2]
[314588451,1708435847258,-783.78467868,0.00048422,5]
[314588452,1708435847267,-1441.96328614,0.0004843,2]
[314588453,1708435847276,-184.31319189,0.00048433,2]
[314588454,1708435847286,-154.05474448,0.00048437,30]
[314588455,1708435847295,-1000.0,0.00048444,120]
[314588456,1708435847304,-4036.94489333,0.00048448,48]
[314588457,1708435847313,-241.77885292,0.0004845,4]
[314588458,1708435847323,-154.31469957,0.00048459,30]
[314588459,1708435847333,-1579.0,0.00048471,30]
[314588460,1708435847342,-150.04564581,0.00048479,30]
[314588461,1708435847353,-158.08552472,0.00048489,30]
[314588462,1708435847362,-151.0212031,0.00048498,37]
[314588463,1708435847371,-153.6406607,0.00048499,30]
[314588464,1708435847380,-73709.02296494,0.000485,30]
[314588465,1708435847391,-250.0,0.000485,60]
[314588466,1708435847400,-232.586807,0.000485,25]
[314588467,1708435847411,-167.49074301,0.00048502,30]
[314588468,1708435847420,-158.85879615,0.00048512,30]
[314588469,1708435847429,-2770.68,0.00048548,30]
[314588470,1708435847438,-2770.68,0.00048548,30]
[314588471,1708435847448,-697.91088389,0.00048565,30]
[314588472,1708435847457,-500.0,0.0004862,90]
[314588473,1708435847466,-600.0,0.0004863,7]
[314588474,1708435847475,-7301.6474942,0.00048654,30]
[314588475,1708435847484,-1500.0,0.0004867,85]
[314588476,1708435847494,-158.08552472,0.00048673,30]
[314588477,1708435847503,-155.58772598,0.00048711,30]
[314588478,1708435847513,-155.18298927,0.00048743,30]
[314588479,1708435847522,-155.74813687,0.00048757,30]
[314588480,1708435847531,-403600.8395575,0.0004877,4]
[314588481,1708435847761,-1027.09791572,0.00035615,4]
[314588482,1708435847770,-500.0,0.00035616,2]
[314588483,1708435847780,-500.0,0.00035616,2]
[314588484,1708435847789,-500.0,0.00035616,2]
[314588485,1708435847798,-500.0,0.00035616,2]
[314588486,1708435847808,-500.0,0.00035616,2]
[314588487,1708435847817,-520.5218413,0.00035616,2]
[314588488,1708435847826,-500.0,0.0003589,2]
[314588489,1708435847836,-249.15,0.00036164,2]
[314588490,1708435847845,-11567.05050824,0.00041757,4]
[314588491,1708435847855,-2152.13,0.00044832,10]
[314588492,1708435847865,-150.0,0.00048,5]
[314588493,1708435847875,-150.0,0.00048131,7]
[314588494,1708435847886,-150.0,0.00048141,7]
[314588495,1708435847895,-150.0,0.00048158,7]
[314588496,1708435847903,-150.0,0.00048163,7]
[314588497,1708435847913,-150.0,0.0004817,7]
[314588498,1708435847922,-150.0,0.0004817,7]
[314588499,1708435847932,-150.0,0.00048195,7]
[314588500,1708435847941,-150.0,0.00048201,7]
[314588501,1708435847950,-150.0,0.00048203,7]
[314588502,1708435847959,-150.0,0.00048204,7]
[314588503,1708435847968,-150.0,0.00048206,7]
[314588504,1708435847977,-150.0,0.00048212,7]
[314588505,1708435847987,-150.0,0.00048216,7]
[314588506,1708435847996,-150.0,0.00048219,7]
[314588507,1708435848004,-150.0,0.00048223,7]
[314588508,1708435848013,-150.0,0.00048229,7]
[314588509,1708435848022,-150.0,0.00048231,7]
[314588510,1708435848031,-150.0,0.00048233,7]
[314588511,1708435848041,-150.0,0.00048233,7]
[314588512,1708435848050,-150.0,0.00048241,7]
[314588513,1708435848059,-150.0,0.00048241,7]
[314588514,1708435848068,-150.0,0.00048243,7]
[314588515,1708435848077,-150.0,0.00048246,7]
[314588516,1708435848086,-150.0,0.00048273,7]
[314588517,1708435848095,-232.81847671,0.0004828,7]
[314588518,1708435848104,-150.0,0.00048281,7]
[314588519,1708435848113,-150.0,0.00048307,7]
[314588520,1708435848122,-150.0,0.00048353,7]
[314588521,1708435848131,-150.0,0.0004836,7]
[314588522,1708435848139,-150.0,0.00048381,7]
[314588523,1708435848149,-150.0,0.00048383,7]
[314588524,1708435848159,-150.0,0.00048391,7]
[314588525,1708435848168,-150.0,0.000484,7]
[314588526,1708435848177,-150.0,0.00048548,5]
[314588527,1708435848186,-5797.23125788,0.0004877,4]
[314588528,1708435848198,-4665.71481937,0.0004877,4]
[314588529,1708435848209,-4446.45,0.0004877,4]
[314588530,1708435848220,-4335.95560218,0.0004877,4]
[314588567,1708437033927,-2335.13715985,0.00024797,2]
[314588568,1708437033937,-656.06452058,0.00024798,2]
[314588569,1708437033947,-157.75634912,0.00024799,2]
[314588570,1708437033956,-186.8001,0.00024899,2]
[314588571,1708437033967,-910.5246,0.00024899,2]
[314588572,1708437033976,-750.0,0.00025,3]
[314588573,1708437033986,-157.75634904,0.00026449,2]
[314588574,1708437033996,-764.45430584,0.00026898,2]
[314588575,1708437034005,-764.45430584,0.00026898,2]
[314588576,1708437034015,-376.43423085,0.00026899,2]
[314588577,1708437034025,-800.0,0.00027,3]
[314588578,1708437034037,-157.75634904,0.00028099,2]
[314588579,1708437034047,-157.75634904,0.00029749,2]
[314588580,1708437034056,-2604.4,0.00029749,2]
[314588581,1708437034065,-696.10435287,0.00031398,4]
[314588582,1708437034075,-157.75634904,0.00031399,2]
[314588583,1708437034084,-371.6,0.00031863,2]
[314588584,1708437034094,-1027.09791572,0.00031964,4]
[314588585,1708437034103,-822.97735197,0.00032887,2]
[314588586,1708437034113,-157.75634904,0.00033049,2]
[314588587,1708437034122,-2704.99,0.00033164,2]
[314588588,1708437034131,-2000.0,0.00033182,2]
[314588589,1708437034145,-1278.31,0.00033182,2]
[314588590,1708437034155,-220.7,0.00033521,2]
[314588591,1708437034164,-250.0,0.0003374,2]
[314588592,1708437034174,-152.84,0.00033878,2]
[314588593,1708437034183,-162.92,0.00033885,2]
[314588594,1708437034193,-214.46,0.00033904,2]
[314588595,1708437034203,-159.83,0.00033935,10]
[314588596,1708437034212,-500.0,0.00033935,2]
[314588597,1708437034223,-250.0,0.00033962,2]
[314588598,1708437034233,-327.92,0.00033987,2]
[314588599,1708437034243,-371.6,0.00034127,2]
[314588600,1708437034254,-87.62699847,0.0003418,2]
[314588601,1708437034266,-68.87300153,0.0003418,2]
[314588602,1708437034276,-162.36,0.00034208,2]
[314588603,1708437034286,-445.499047,0.0003452,2]
[314588604,1708437034295,-593.998729,0.0003452,2]
[314588605,1708437034304,-1743.533126,0.0003452,2]
[314588606,1708437034314,-7935.452779,0.0003452,2]
[314588607,1708437034323,-564.722793,0.0003452,2]
[314588608,1708437034332,-621.05,0.00034521,2]
[314588609,1708437034342,-157.75634904,0.00034699,2]
[314588611,1708437034352,-526.43106906,0.00034792,4]
[314588613,1708437034361,-559.78397774,0.00034792,4]
[314588615,1708437034371,-668.248571,0.00034794,2]
[314588616,1708437034380,-890.998094,0.00034794,2]
[314588620,1708437034392,-2615.299689,0.00034794,2]
[314588623,1708437034401,-11903.179169,0.00034794,2]
[314588626,1708437034411,-847.08419,0.00034794,2]
[314588629,1708437034421,-890.998094,0.00034931,2]
[314588631,1708437034431,-1187.997459,0.00034931,2]
[314588633,1708437034441,-3487.066252,0.00034931,2]
[314588635,1708437034450,-15870.905559,0.00034931,2]
[314588637,1708437034459,-1129.445587,0.00034931,2]
[314588640,1708437034468,-159.01287732,0.00034968,2]
[314588643,1708437034477,-166.34,0.00034989,2]
[314588646,1708437034487,-1120.89,0.00035002,2]
[314588649,1708437034496,-212.38,0.00035032,2]
[314588651,1708437034505,-499.99,0.00035032,2]
[314588653,1708437034514,-1113.747618,0.00035068,2]
[314588655,1708437034523,-1484.996824,0.00035068,2]
[314588657,1708437034532,-4358.832815,0.00035068,2]
[314588659,1708437034541,-19838.631948,0.00035068,2]
[314588660,1708437034550,-1411.806983,0.00035068,2]
[314588661,1708437034559,-1000.0,0.00035166,2]
[314588662,1708437034569,-326.34375494,0.0003524,4]
[314588663,1708437034579,-5927.9421,0.00035242,2]
[314588664,1708437034588,-159.0128773,0.00035242,2]
[314588665,1708437034798,-1559.246665,0.00035342,2]
[314588666,1708437034808,-2078.995554,0.00035342,2]
[314588667,1708437034818,-6102.365942,0.00035342,2]
[314588668,1708437034828,-27774.084728,0.00035342,2]
[314588669,1708437034837,-1976.529777,0.00035342,2]
[314588670,1708437034846,-1000.0,0.00035514,2]
[314588671,1708437034856,-7136.1059,0.00035516,2]
[314588672,1708437034865,-836.1203,0.00035516,2]
[314588673,1708437034875,-10144.4841,0.00035516,2]
[314588674,1708437034887,-4348.2432,0.00035516,2]
[314588675,1708437034897,-5000.0,0.00035516,3]
[314588676,1708437034917,-159.0128773,0.00035516,2]
[314588677,1708437034927,-156.1180249,0.00035614,4]
[314588678,1708437034937,-30277.18029945,0.00035614,2]
[314588679,1708437034947,-230.39976759,0.00035615,4]
[314588680,1708437034957,-10544.02191081,0.00035615,7]
[314588681,1708437034966,-500.0,0.00035616,2]
[314588682,1708437034976,-500.0,0.00035616,2]
[314588683,1708437034986,-500.0,0.00035616,2]
[314588684,1708437034995,-500.0,0.00035616,2]
[314588685,1708437035006,-500.0,0.00035616,2]
[314588686,1708437035015,-500.0,0.00035616,2]
[314588687,1708437035025,-500.0,0.00035616,2]
[314588688,1708437035034,-500.0,0.00035616,2]
[314588689,1708437035044,-500.0,0.00035616,2]
[314588690,1708437035054,-500.0,0.00035616,2]
[314588691,1708437035064,-500.0,0.00035616,2]
[314588692,1708437035074,-500.0,0.00035616,2]
[314588693,1708437035084,-500.0,0.00035616,2]
[314588694,1708437035093,-500.0,0.00035616,2]
[314588695,1708437035103,-500.0,0.00035616,2]
[314588696,1708437035113,-500.0,0.00035616,2]
[314588697,1708437035123,-500.0,0.00035616,2]
[314588698,1708437035132,-500.0,0.00035616,2]
[314588699,1708437035144,-500.0,0.00035616,2]
[314588700,1708437035153,-500.0,0.00035616,2]
[314588701,1708437035163,-500.0,0.00035616,2]
[314588702,1708437035173,-500.0,0.00035616,2]
[314588703,1708437035182,-500.0,0.00035616,2]
[314588704,1708437035193,-500.0,0.00035616,2]
[314588705,1708437035203,-579.06507442,0.00035616,2]
[314588706,1708437035213,-500.0,0.00035616,2]
[314588707,1708437035224,-500.0,0.00035616,2]
[314588708,1708437035233,-500.0,0.00035616,2]
[314588709,1708437035243,-500.0,0.00035616,2]
[314588710,1708437035255,-500.0,0.00035616,2]
[314588711,1708437035266,-500.0,0.00035616,2]
[314588712,1708437035276,-500.0,0.00035616,2]
[314588713,1708437035285,-152.70854521,0.00035616,2]
[314588714,1708437035295,-529.55132534,0.00035616,2]
[314588715,1708437035304,-500.0,0.00035616,2]
[314588716,1708437035314,-500.0,0.00035616,2]
[314588717,1708437035324,-500.0,0.00035616,2]
[314588718,1708437035334,-500.0,0.00035616,2]
[314588719,1708437035344,-500.0,0.00035616,2]
[314588720,1708437035353,-500.0,0.00035616,2]
[314588721,1708437035363,-153.30681954,0.00035616,2]
[314588722,1708437035373,-500.0,0.00035616,2]
[314588723,1708437035383,-421.55812592,0.00035616,2]
[314588724,1708437035395,-500.0,0.00035616,2]
[314588725,1708437035404,-500.0,0.00035616,2]
[314588726,1708437035414,-500.0,0.00035616,2]
[314588727,1708437035423,-500.0,0.00035616,2]
[314588728,1708437035433,-552.48,0.00035616,2]
[314588729,1708437035443,-500.0,0.00035616,2]
[314588730,1708437035452,-500.0,0.00035616,2]
[314588731,1708437035461,-500.0,0.00035616,2]
[314588732,1708437035471,-543.70871715,0.00035616,2]
[314588733,1708437035481,-500.0,0.00035616,2]
[314588734,1708437035490,-500.0,0.00035616,2]
[314588735,1708437035500,-500.0,0.00035616,2]
[314588736,1708437035510,-500.0,0.00035616,2]
[314588737,1708437035519,-500.0,0.00035616,2]
[314588738,1708437035528,-500.0,0.00035616,2]
[314588739,1708437035538,-500.0,0.00035616,2]
[314588740,1708437035547,-500.0,0.00035616,2]
[314588741,1708437035557,-500.0,0.00035616,2]
[314588742,1708437035566,-500.0,0.00035616,2]
[314588743,1708437035576,-502.55488385,0.00035616,2]
[314588744,1708437035585,-606.38469841,0.00035616,2]
[314588745,1708437035595,-357.90159836,0.00035616,2]
[314588746,1708437035609,-500.0,0.00035616,2]
[314588747,1708437035619,-500.0,0.00035616,2]
[314588748,1708437035628,-603.04916961,0.00035616,2]
[314588749,1708437035640,-500.0,0.00035616,2]
[314588750,1708437035650,-500.0,0.00035616,2]
[314588751,1708437035660,-500.0,0.00035616,2]
[314588752,1708437035671,-500.0,0.00035616,2]
[314588753,1708437035681,-500.0,0.00035616,2]
[314588754,1708437035691,-500.0,0.00035616,2]
[314588755,1708437035701,-500.0,0.00035616,2]
[314588756,1708437035711,-500.0,0.00035616,2]
[314588757,1708437035720,-605.25,0.00035616,2]
[314588758,1708437035730,-500.0,0.00035616,2]
[314588759,1708437035740,-500.0,0.00035616,2]
[314588760,1708437035750,-500.0,0.00035616,2]
[314588761,1708437035760,-500.0,0.00035616,2]
[314588762,1708437035770,-500.0,0.00035616,2]
[314588763,1708437035779,-500.0,0.00035616,2]
[314588764,1708437035789,-500.0,0.00035616,2]
[314588765,1708437035799,-500.0,0.00035616,2]
[314588766,1708437035808,-500.0,0.00035616,2]
[314588767,1708437035818,-441.74,0.00035616,2]
[314588768,1708437035828,-559.77627015,0.00035616,2]
[314588769,1708437035837,-500.0,0.00035616,2]
[314588770,1708437035847,-500.0,0.00035616,2]
[314588771,1708437035857,-285.0,0.00035616,2]
[314588772,1708437035870,-500.0,0.00035616,2]
[314588773,1708437035883,-500.0,0.00035616,2]
[314588774,1708437035895,-500.0,0.00035616,2]
[314588775,1708437035906,-500.0,0.00035616,2]
[314588776,1708437035916,-410.49660894,0.00035616,2]
[314588777,1708437035926,-500.0,0.00035616,2]
[314588778,1708437035936,-500.0,0.00035616,2]
[314588779,1708437035946,-500.0,0.00035616,2]
[314588780,1708437035958,-500.0,0.00035616,2]
[314588781,1708437035969,-500.0,0.00035616,2]
[314588782,1708437035978,-500.0,0.00035616,2]
[314588783,1708437035988,-500.0,0.00035616,2]
[314588784,1708437035998,-500.0,0.00035616,2]
[314588785,1708437036007,-500.0,0.00035616,2]
[314588786,1708437036017,-500.0,0.00035616,2]
[314588787,1708437036027,-500.0,0.00035616,2]
[314588788,1708437036037,-500.0,0.00035616,2]
[314588789,1708437036047,-500.0,0.00035616,2]
[314588790,1708437036057,-252.44804511,0.00035616,2]
[314588791,1708437036067,-500.0,0.00035616,2]
[314588792,1708437036077,-500.0,0.00035616,2]
[314588793,1708437036087,-500.0,0.00035616,2]
[314588794,1708437036097,-500.0,0.00035616,2]
[314588795,1708437036106,-500.0,0.00035616,2]
[314588796,1708437036116,-500.0,0.00035616,2]
[314588797,1708437036125,-532.96,0.00035616,2]
[314588798,1708437036135,-500.0,0.00035616,2]
[314588799,1708437036145,-500.0,0.00035616,2]
[314588800,1708437036154,-500.0,0.00035616,2]
[314588801,1708437036164,-500.0,0.00035616,2]
[314588802,1708437036174,-500.0,0.00035616,2]
[314588803,1708437036183,-500.0,0.00035616,2]
[314588804,1708437036192,-500.0,0.00035616,2]
[314588805,1708437036202,-500.0,0.00035616,2]
[314588806,1708437036212,-245.65334112,0.00035616,2]
[314588807,1708437036223,-500.0,0.00035616,2]
[314588808,1708437036233,-500.0,0.00035616,2]
[314588809,1708437036243,-500.0,0.00035616,2]
[314588810,1708437036255,-500.0,0.00035616,2]
[314588811,1708437036265,-609.22,0.00035616,2]
[314588812,1708437036275,-391.98317159,0.00035616,2]
[314588813,1708437036287,-500.0,0.00035616,2]
[314588814,1708437036297,-516.55109406,0.00035616,2]
[314588815,1708437036310,-500.0,0.00035616,2]
[314588816,1708437036320,-511.75417555,0.00035616,2]
[314588817,1708437036334,-500.0,0.00035616,2]
[314588818,1708437036344,-500.0,0.00035616,2]
[314588819,1708437036354,-500.0,0.00035616,2]
[314588820,1708437036363,-500.0,0.00035616,2]
[314588821,1708437036373,-500.0,0.00035616,2]
[314588822,1708437036383,-500.0,0.00035616,2]
[314588823,1708437036394,-500.0,0.00035616,2]
[314588824,1708437036404,-500.0,0.00035616,2]
[314588825,1708437036413,-500.0,0.00035616,2]
[314588826,1708437036423,-500.0,0.00035616,2]
[314588827,1708437036433,-500.0,0.00035616,2]
[314588828,1708437036442,-500.0,0.00035616,2]
[314588829,1708437036451,-500.0,0.00035616,2]
[314588830,1708437036461,-500.0,0.00035616,2]
[314588831,1708437036471,-500.0,0.00035616,2]
[314588832,1708437036481,-500.0,0.00035616,2]
[314588833,1708437036490,-500.0,0.00035616,2]
[314588834,1708437036500,-500.0,0.00035616,2]
[314588835,1708437036509,-500.0,0.00035616,2]
[314588836,1708437036519,-500.0,0.00035616,2]
[314588837,1708437036528,-150.0,0.00035616,2]
[314588838,1708437036538,-500.0,0.00035616,2]
[314588839,1708437036547,-500.0,0.00035616,2]
[314588840,1708437036558,-500.0,0.00035616,2]
[314588841,1708437036567,-500.0,0.00035616,2]
[314588842,1708437036576,-500.0,0.00035616,2]
[314588843,1708437036586,-555.00017259,0.00035616,2]
[314588844,1708437036595,-500.0,0.00035616,2]
[314588845,1708437036604,-500.0,0.00035616,2]
[314588846,1708437036613,-500.0,0.00035616,2]
[314588847,1708437036623,-500.0,0.00035616,2]
[314588848,1708437036632,-500.0,0.00035616,2]
[314588849,1708437036643,-500.0,0.00035616,2]
[314588850,1708437036652,-503.5408574,0.00035616,2]
[314588851,1708437036662,-500.0,0.00035616,2]
[314588852,1708437036672,-500.0,0.00035616,2]
[314588853,1708437036682,-500.0,0.00035616,2]
[314588854,1708437036692,-500.0,0.00035616,2]
[314588855,1708437036702,-500.0,0.00035616,2]
[314588856,1708437036711,-500.0,0.00035616,2]
[314588857,1708437036721,-500.0,0.00035616,2]
[314588858,1708437036731,-529.35661272,0.00035616,2]
[314588859,1708437036742,-500.0,0.00035616,2]
[314588860,1708437036752,-500.0,0.00035616,2]
[314588861,1708437036763,-500.0,0.00035616,2]
[314588862,1708437036774,-500.0,0.00035616,2]
[314588863,1708437036784,-624.88,0.00035616,2]
[314588864,1708437036794,-502.94532836,0.00035616,2]
[314588865,1708437036805,-523.57599819,0.00035616,2]
[314588866,1708437036816,-500.0,0.00035616,2]
[314588867,1708437036826,-500.0,0.00035616,2]
[314588868,1708437036837,-513.81317709,0.00035616,2]
[314588869,1708437036847,-500.0,0.00035616,2]
[314588870,1708437036857,-509.06071198,0.00035616,2]
[314588871,1708437036867,-529.003615,0.00035616,2]
[314588872,1708437036881,-500.0,0.00035616,2]
[314588873,1708437036892,-500.0,0.00035616,2]
[314588874,1708437036902,-500.0,0.00035616,2]
[314588875,1708437036912,-506.55404919,0.00035616,2]